bitfinex/quotes_SOLUSD_20220216
["timestamp","ask_amount","ask_price","bid_price","bid_amount"]
[1644996646451,24.5855,102.94,102.88,39.61189202]
[1644996650058,39.1606,102.94,102.88,39.61189202]
[1644996656567,39.1606,102.94,102.88,39.36189202]
[1644996657989,39.1606,102.94,102.88,39.61189202]
[1644996658190,39.1606,102.94,102.88,39.36189202]
[1644996658386,39.1606,102.94,102.88,39.61189202]
[1644996658587,39.1606,102.94,102.89,1.37419202]
[1644996658787,39.1606,102.94,102.9,14.5747]
[1644996666496,24.5855,102.94,102.9,14.5747]
[1644996670599,39.1601,102.94,102.9,14.5747]
[1644996671806,39.1601,102.94,102.89,15.95019202]
[1644996672003,39.1601,102.94,102.89,16.20019202]
[1644996672204,39.1601,102.94,102.89,14.826]
[1644996680115,24.5855,102.94,102.89,63.156]
[1644996690157,14.574,102.95,102.89,62.906]
[1644996690358,14.5722,102.96,102.89,80.05180144]
[1644996690557,14.5722,102.96,102.9,72.37599202]
[1644996690761,14.5722,102.96,102.91,14.5717]
[1644996691162,14.5722,102.96,102.91,14.8217]
[1644996691759,23.2198,102.97,102.91,14.5717]
[1644996691959,22.5327,102.99,102.91,113.66589202]
[1644996692159,45.4288,102.99,102.92,23.8741]
[1644996692359,45.4288,102.99,102.94,14.568]
[1644996692958,59.9971,102.99,102.94,14.568]
[1644996693161,59.9971,102.99,102.92,23.8741]
[1644996693561,59.9971,102.99,102.92,24.1241]
[1644996694059,59.9971,102.99,102.93,14.5704]
[1644996696064,59.9971,102.99,102.93,14.8204]
[1644996697167,14.5669,103.0,102.93,14.8204]
[1644996697367,25.36152757,103.02,102.93,63.1504]
[1644996697569,25.36152757,103.02,102.94,23.0316]
[1644996697971,25.36152757,103.02,102.96,14.5655]
[1644996698970,25.36152757,103.02,102.94,23.2816]
[1644996698971,14.5657,103.01,102.95,14.5674]
[1644996705697,29.4637,103.01,102.95,14.5674]
[1644996706701,14.5657,103.01,102.95,14.5674]
[1644996711906,14.5657,103.01,102.94,37.6003]
[1644996712904,23.2782,103.0,102.94,37.6003]
[1644996713105,14.5696,102.99,102.94,37.6003]
[1644996714005,23.2782,103.0,102.94,37.6003]
[1644996714203,23.2782,103.0,102.94,45.7703]
[1644996714407,23.2782,103.0,102.94,46.0203]
[1644996715405,23.2782,103.0,102.94,37.6003]
[1644996715605,23.2782,103.0,102.94,37.8503]
[1644996716007,37.8447,103.0,102.94,37.8503]
[1644996716608,23.2782,103.0,102.94,37.8503]
[1644996718012,14.5658,103.01,102.94,37.8503]
[1644996723521,14.5658,103.01,102.94,86.1803]
[1644996728827,40.14832757,103.02,102.94,86.1803]
[1644996729534,40.14832757,103.02,102.94,85.9303]
[1644996729735,40.14832757,103.02,102.94,183.6503]
[1644996729936,25.58432757,103.02,102.95,112.99160942]
[1644996730137,24.2219,103.02,102.97,14.5617]
[1644996730539,24.2219,103.02,102.97,14.8117]
[1644996732841,24.2219,103.02,102.97,29.3128]
[1644996733039,24.2219,103.02,102.97,14.8117]
[1644996735145,24.2086,103.03,102.97,14.8117]
[1644996735549,16.15493789,103.05,102.97,112.2817]
[1644996735746,1.59503789,103.05,103.0,14.5579]
[1644996735947,0.23261032,103.05,103.0,21.0819]
[1644996736144,0.23261032,103.05,103.0,44.8711]
[1644996737558,0.23261032,103.05,103.0,93.2011]
[1644996738858,0.23261032,103.05,103.0,107.7009]
[1644996748279,0.23261032,103.05,103.0,84.1617]
[1644996748478,0.23261032,103.05,103.0,21.0819]
[1644996748679,0.23261032,103.05,102.99,14.5619]
[1644996749876,14.79241032,103.05,102.99,14.5619]
[1644996750482,14.79241032,103.05,102.98,39.3578]
[1644996750684,14.79241032,103.05,102.97,40.22490942]
[1644996750685,38.96501032,103.05,102.97,24.7033]
[1644996750983,38.96501032,103.05,102.95,48.5421]
[1644996751180,38.96501032,103.05,102.95,71.846]
[1644996751682,38.96501032,103.05,102.95,71.596]
[1644996751880,38.96501032,103.05,102.97,14.5641]
[1644996753983,40.32743789,103.05,102.97,14.5641]
[1644996761418,40.32743789,103.05,102.95,23.0539]
[1644996761622,40.32743789,103.05,102.96,14.5657]
[1644996763620,137.79743789,103.05,102.96,14.5657]
[1644996766726,40.32743789,103.05,102.96,14.5657]
[1644996766927,38.96501032,103.05,102.96,30.33730942]
[1644996767224,38.96501032,103.05,102.99,14.5608]
[1644996767625,38.96501032,103.05,102.99,14.8108]
[1644996768028,38.96501032,103.05,102.99,14.5608]
[1644996768734,38.96501032,103.05,102.99,14.8108]
[1644996769128,38.96501032,103.05,102.99,14.5608]
[1644996770228,38.96501032,103.05,102.99,14.8108]
[1644996775138,38.96501032,103.05,102.99,14.5608]
[1644996779040,38.96501032,103.05,102.99,37.1051]
[1644996781462,38.96501032,103.05,102.99,14.5608]
[1644996781664,40.32743789,103.05,102.98,14.563]
[1644996782064,40.32743789,103.05,102.98,14.813]
[1644996782565,1.36242757,103.04,102.98,14.563]
[1644996782766,14.5648,103.02,102.97,38.3104]
[1644996782965,14.5648,103.02,102.97,23.7456]
[1644996783168,14.5648,103.02,102.95,48.33]
[1644996783366,14.5648,103.02,102.95,23.2722]
[1644996783969,14.5648,103.02,102.95,37.839]
[1644996784165,14.5648,103.02,102.94,15.52160942]
[1644996784367,14.5648,103.02,102.93,71.0403]
[1644996784568,14.5684,102.99,102.93,94.4568]
[1644996785567,14.5684,102.99,102.93,94.7068]
[1644996785970,14.5684,102.99,102.94,14.5683]
[1644996813895,14.5684,102.99,102.94,14.8183]
[1644996816718,14.5666,103.0,102.94,14.5683]
[1644996816919,23.2205,103.01,102.96,14.5655]
[1644996817123,23.2205,103.01,102.96,14.8155]
[1644996819421,23.2205,103.01,102.97,48.33]
[1644996819719,23.2205,103.01,102.97,62.894]
[1644996820120,23.2205,103.01,102.97,14.564]
[1644996821922,37.7853,103.01,102.97,14.564]
[1644996825329,23.2205,103.01,102.97,14.564]
[1644996827532,14.5624,103.03,102.97,14.814]
[1644996827732,38.9198,103.03,102.98,23.4451]
[1644996827933,38.9198,103.03,102.99,14.562]
[1644996829135,38.9198,103.03,102.98,38.0084]
[1644996830230,38.9198,103.03,102.98,23.4451]
[1644996831233,38.9198,103.03,102.97,14.5646]
[1644996833634,136.3898,103.03,102.97,14.5646]
[1644996833834,136.3898,103.03,102.96,14.5659]
[1644996834239,1.36242757,103.03,102.96,14.5659]
[1644996834839,14.5624,103.03,102.96,14.5659]
[1644996835138,14.5624,103.03,102.96,14.8159]
[1644996835337,14.5624,103.03,102.96,14.5659]
[1644996835541,1.59503789,103.05,102.98,5.18007224]
[1644996835740,0.23261032,103.05,103.0,14.5599]
[1644996837138,0.23261032,103.05,103.0,14.8099]
[1644996838640,0.23261032,103.05,103.0,63.1399]
[1644996838840,0.23261032,103.05,103.0,62.8899]
[1644996839240,0.23261032,103.05,103.0,63.1399]
[1644996840042,0.23261032,103.05,103.0,69.7439]
[1644996845947,0.23261032,103.05,103.0,83.6739]
[1644996846146,0.23261032,103.05,103.01,6.0]
[1644996846347,0.23261032,103.05,103.02,14.5534]
[1644996846746,0.00261032,103.05,103.02,160.3534]
[1644996846947,0.00261032,103.05,103.03,111.4]
[1644996847149,0.46522064,103.06,103.04,66.0]
[1644996847347,0.60252664,103.06,103.04,192.91540553]
[1644996847548,0.24660464,103.07,103.04,208.48872366]
[1644996847948,0.24660464,103.07,103.04,142.48872366]
[1644996848750,0.24660464,103.07,103.05,48.33]
[1644996849150,0.24660464,103.07,103.05,48.58]
[1644996849350,0.24660464,103.07,103.05,146.05]
[1644996850349,0.24660464,103.07,103.05,170.9818]
[1644996850650,0.24660464,103.07,103.06,62.26]
[1644996850850,0.24660464,103.07,103.06,76.8082]
[1644996851150,0.24660464,103.07,103.06,77.0582]
[1644996853652,0.24660464,103.07,103.06,62.8782]
[1644996853852,0.24660464,103.07,103.06,14.5482]
[1644996858254,0.24660464,103.07,103.06,14.7982]
[1644996859055,0.24660464,103.07,103.06,14.5482]
[1644996859654,0.24660464,103.07,103.06,14.7982]
[1644996859858,0.24660464,103.07,103.06,14.5482]
[1644996869697,3.27880461,103.07,103.06,14.5482]
[1644996871297,0.24660464,103.07,103.06,14.5482]
[1644996873199,0.24660464,103.07,103.06,14.7982]
[1644996878397,0.24660464,103.07,103.06,14.5482]
[1644996880001,3.27880461,103.07,103.06,14.5482]
[1644996880799,0.24660464,103.07,103.06,14.5482]
[1644996881001,0.24660464,103.07,103.06,39.4452]
[1644996881202,0.24660464,103.07,103.06,39.1952]
[1644996883206,3.27880461,103.07,103.06,39.1952]
[1644996883406,3.27880461,103.07,103.06,14.5482]
[1644996883808,0.24660464,103.07,103.06,14.5482]
[1644996886410,0.24660464,103.07,103.06,14.7982]
[1644996887010,0.24660464,103.07,103.06,63.1282]
[1644996888313,0.24660464,103.07,103.06,77.6515]
[1644996889515,0.24660464,103.07,103.06,77.4015]
[1644996891037,0.24660464,103.07,103.06,77.6515]
[1644996894845,0.00660464,103.07,103.06,204.56690553]
[1644996895045,0.00638128,103.08,103.07,221.8]
[1644996895247,0.2883052,103.12,103.07,284.2]
[1644996895444,0.2883052,103.12,103.09,145.8]
[1644996895644,0.2883052,103.12,103.1,159.73]
[1644996895845,0.2883052,103.12,103.1,177.44446707]
[1644996896144,0.2883052,103.12,103.11,16.73806154]
[1644996896344,0.2883052,103.12,103.11,70.13956707]
[1644996896545,0.2883052,103.12,103.11,70.38956707]
[1644996898549,0.2883052,103.12,103.11,167.85956707]
[1644996898949,0.57956288,103.18,103.13,97.47]
[1644996899150,1.86369088,103.18,103.15,97.47]
[1644996899350,1.86369088,103.18,103.16,111.4]
[1644996899351,1.05560576,103.18,103.16,111.4]
[1644996899553,1.05560576,103.18,103.17,13.93]
[1644996899951,1.05560576,103.18,103.17,16.12906154]
[1644996900454,1.05560576,103.18,103.17,28.4613]
[1644996900651,1.05560576,103.18,103.13,30.49296154]
[1644996900855,1.05560576,103.18,103.14,0.25]
[1644996901054,1.05560576,103.18,103.15,13.93]
[1644996902056,1.05560576,103.18,103.15,28.4673]
[1644996903156,1.05560576,103.18,103.15,28.7173]
[1644996904560,1.59723136,103.18,103.15,28.7173]
[1644996904956,1.59723136,103.18,103.15,14.5373]
[1644996905358,3.03219997,103.17,103.15,14.5373]
[1644996905556,3.90542781,103.17,103.12,92.44806612]
[1644996905756,3.90542781,103.17,103.14,14.5399]
[1644996906557,4.44714429,103.17,103.14,14.5399]
[1644996915166,1.41494432,103.17,103.14,14.5399]
[1644996919169,1.41494432,103.17,103.14,14.7899]
[1644996919371,0.00494432,103.17,103.16,14.5335]
[1644996919571,0.00494432,103.17,103.16,14.7835]
[1644996919769,0.00494432,103.17,103.16,30.91655065]
[1644996920670,0.00494432,103.17,103.16,30.66655065]
[1644996920873,0.00494432,103.17,103.16,28.4635]
[1644996921069,0.00494432,103.17,103.16,28.7135]
[1644996921571,0.00494432,103.17,103.16,28.4635]
[1644996922271,3.03714429,103.17,103.16,28.4635]
[1644996922470,3.03714429,103.17,103.16,28.7135]
[1644996922670,3.03714429,103.17,103.16,28.4635]
[1644996922871,0.00494432,103.17,103.16,28.4635]
[1644996923476,3.03714429,103.17,103.16,28.4635]
[1644996924174,3.03714429,103.17,103.16,30.91655065]
[1644996924374,0.00494432,103.17,103.16,30.91655065]
[1644996924577,0.00494432,103.17,103.16,28.4635]
[1644996924776,0.18228704,103.18,103.16,28.4635]
[1644996925180,3.03219997,103.17,103.16,28.4635]
[1644996926778,3.03219997,103.17,103.16,14.5335]
[1644996927879,3.03219997,103.17,103.16,14.7835]
[1644996930682,0.18228704,103.18,103.16,33.69865065]
[1644996930881,0.18228704,103.18,103.16,17.5656]
[1644996932103,0.18228704,103.18,103.16,14.5335]
[1644996935505,0.18228704,103.18,103.16,14.7835]
[1644996936406,0.18228704,103.18,103.17,17.5673]
[1644996937310,0.18228704,103.18,103.17,14.5352]
[1644996939514,0.18228704,103.18,103.13,2.20305065]
[1644996939713,5.96128704,103.18,103.1,62.26]
[1644996939911,5.96128704,103.18,103.09,10.12409869]
[1644996940112,7.32371461,103.18,103.09,10.12409869]
[1644996940310,7.32371461,103.18,103.08,29.45387533]
[1644996940511,119.33611461,103.18,103.11,14.5446]
[1644996940713,21.86611461,103.18,103.11,14.5446]
[1644996942310,119.33611461,103.18,103.11,14.5446]
[1644996943111,119.33611461,103.18,103.1,14.5461]
[1644996947618,97.47,103.16,103.05,524.12104495]
[1644996947820,112.0204,103.14,103.05,487.30563621]
[1644996948818,112.0204,103.14,103.07,14.5504]
[1644996949120,112.0204,103.14,103.05,438.80883621]
[1644996949521,112.0204,103.14,103.04,48.33]
[1644996949920,24.2788,103.13,103.04,48.58]
[1644996950122,38.8307,103.13,103.06,14.5515]
[1644996950524,38.8307,103.13,103.04,0.25]
[1644996951124,38.8307,103.13,103.03,112.4936]
[1644996951924,38.8307,103.13,103.05,14.5526]
[1644996954124,136.3007,103.13,103.05,14.5526]
[1644996957033,38.8307,103.13,103.05,14.5526]
[1644996959562,38.8307,103.13,103.05,14.8026]
[1644996960461,38.8307,103.13,103.05,38.9936]
[1644996963066,38.8307,103.13,103.05,38.7436]
[1644996963666,136.3007,103.13,103.05,38.7436]
[1644996965668,136.3007,103.13,103.05,38.9936]
[1644996966268,136.3007,103.13,103.05,14.5526]
[1644996966469,150.2307,103.13,103.04,14.5545]
[1644996966967,152.64864346,103.13,103.04,14.5545]
[1644996967471,152.64864346,103.13,103.03,24.96]
[1644996968969,167.31394346,103.13,103.03,39.516]
[1644996969572,168.67637103,103.13,103.03,39.516]
[1644996970576,166.25842757,103.13,103.03,39.516]
[1644996970973,168.67637103,103.13,103.03,39.516]
[1644996971174,166.25842757,103.13,103.03,39.516]
[1644996973977,168.67637103,103.13,103.03,39.516]
[1644996975282,166.25842757,103.13,103.03,39.516]
[1644996975478,54.12312757,103.13,103.05,14.5533]
[1644996975679,40.19312757,103.13,103.05,14.5533]
[1644996975881,38.8307,103.13,103.05,14.8033]
[1644996976581,24.2788,103.13,103.05,14.8033]
[1644996976780,24.2788,103.13,103.05,17.00635065]
[1644996976981,24.2788,103.13,103.05,18.38054267]
[1644996977182,24.2788,103.13,103.05,22.91895414]
[1644996977480,24.2788,103.13,103.05,24.29314616]
[1644996977882,24.2788,103.13,103.05,72.62314616]
[1644996984585,24.2788,103.13,103.05,66.71054267]
[1644996984788,1.36242757,103.15,103.05,178.33022598]
[1644996984985,1.36242757,103.16,103.06,24.2393]
[1644996985186,49.69322757,103.17,103.09,14.5454]
[1644996985586,49.69322757,103.17,103.09,14.7954]
[1644996985989,49.69322757,103.17,103.09,37.6045]
[1644996986588,48.3308,103.17,103.09,37.6045]
[1644996986990,62.8765,103.17,103.09,37.6045]
[1644996992713,160.3465,103.17,103.09,37.6045]
[1644996992914,62.8765,103.17,103.09,37.6045]
[1644996994216,23.7314,103.17,103.09,37.6045]
[1644996994616,0.18228704,103.18,103.09,163.15418331]
[1644996994817,0.18228704,103.18,103.12,14.5393]
[1644996995015,0.18228704,103.18,103.12,37.5867]
[1644996995218,0.18228704,103.18,103.12,37.8367]
[1644996998422,0.18228704,103.18,103.12,40.03975065]
[1644997003232,0.18228704,103.18,103.12,158.35943396]
[1644997003432,0.18228704,103.18,103.12,186.49921244]
[1644997003634,0.18228704,103.18,103.12,234.82921244]
[1644997005539,0.18228704,103.18,103.12,249.49761244]
[1644997008738,0.18228704,103.18,103.14,97.47]
[1644997008939,0.18228704,103.18,103.16,14.5336]
[1644997009140,0.18228704,103.18,103.17,3.0321]
[1644997009940,0.18228704,103.18,103.17,3.2821]
[1644997010965,0.18228704,103.18,103.17,66.1454]
[1644997012366,0.18228704,103.18,103.17,17.8154]
[1644997012564,0.18228704,103.18,103.17,17.5654]
[1644997014164,0.18228704,103.18,103.17,17.8154]
[1644997017168,0.18228704,103.18,103.17,17.5654]
[1644997020186,0.00228704,103.18,103.17,17.8154]
[1644997020376,0.79656064,103.19,103.17,106.94774382]
[1644997020775,0.79656064,103.19,103.17,121.09742713]
[1644997022380,0.79656064,103.19,103.17,106.94774382]
[1644997022580,0.79656064,103.19,103.17,106.69774382]
[1644997024081,0.79656064,103.19,103.17,106.94774382]
[1644997024684,0.66485316,103.23,103.17,218.56742713]
[1644997024885,0.66485316,103.23,103.17,232.78420402]
[1644997025086,0.66485316,103.23,103.19,111.9967]
[1644997025287,0.66485316,103.23,103.19,51.2078]
[1644997025485,0.66485316,103.23,103.19,51.4578]
[1644997025686,0.66485316,103.23,103.19,53.64974382]
[1644997026286,0.66485316,103.23,103.2,48.33]
[1644997026588,0.66485316,103.23,103.21,17.5594]
[1644997026987,0.66485316,103.23,103.21,17.8094]
[1644997027192,0.66485316,103.23,103.21,41.5703]
[1644997030417,0.66485316,103.23,103.22,48.33]
[1644997030616,0.66485316,103.23,103.22,62.8556]
[1644997030816,0.31376898,103.26,103.22,62.8556]
[1644997031017,0.31376898,103.26,103.22,66.1377]
[1644997031216,0.31376898,103.26,103.22,163.6077]
[1644997031618,0.31376898,103.26,103.24,14.5215]
[1644997032017,0.31376898,103.26,103.24,14.7715]
[1644997032316,0.31376898,103.26,103.25,3.0321]
[1644997032723,0.31376898,103.26,103.25,3.2821]
[1644997032924,0.00890116,103.28,103.25,3.2821]
[1644997033218,0.15631436,103.28,103.26,111.4]
[1644997033622,0.15631436,103.28,103.27,3.0321]
[1644997033820,0.2948264,103.28,103.27,3.0321]
[1644997034020,0.2948264,103.28,103.27,17.8002]
[1644997034420,0.2948264,103.28,103.27,66.1302]
[1644997036022,0.2948264,103.28,103.27,17.8002]
[1644997038027,0.2948264,103.28,103.27,17.5502]
[1644997039626,0.2948264,103.28,103.27,17.8002]
[1644997040226,0.2948264,103.28,103.27,19.99214382]
[1644997040426,0.5896528,103.28,103.27,19.99214382]
[1644997041030,0.2691207,103.29,103.28,0.5799472]
[1644997041230,1.14204422,103.32,103.27,16.96004382]
[1644997042430,1.14204422,103.32,103.28,48.33]
[1644997042631,1.14204422,103.32,103.29,14.71450394]
[1644997050924,0.56400982,103.31,103.29,14.71450394]
[1644997055830,0.00400982,103.31,103.29,112.18450394]
[1644997056032,0.18125126,103.31,103.29,112.43450394]
[1644997056231,0.53177836,103.32,103.29,30.83644776]
[1644997056430,0.53177836,103.32,103.29,14.71450394]
[1644997056632,0.53177836,103.32,103.24,1.37419202]
[1644997056633,47.19810391,103.31,103.24,1.37419202]
[1644997056832,144.66810391,103.31,103.24,1.37419202]
[1644997057032,147.08604737,103.31,103.19,25.67119202]
[1644997057232,14.5292,103.28,103.22,14.5292]
[1644997061140,14.99073896,103.28,103.22,14.5292]
[1644997066544,0.46153896,103.28,103.22,141.40499442]
[1644997066740,0.46153896,103.28,103.23,48.33]
[1644997066940,0.46153896,103.28,103.24,62.855]
[1644997067539,0.46153896,103.28,103.24,63.105]
[1644997067743,0.46153896,103.28,103.24,62.855]
[1644997069943,0.46153896,103.28,103.24,63.105]
[1644997070361,0.46153896,103.28,103.24,62.855]
[1644997070562,0.46153896,103.28,103.24,14.525]
[1644997074476,0.46153896,103.28,103.23,14.5278]
[1644997080585,0.46153896,103.28,103.22,14.5295]
[1644997080787,0.46153896,103.28,103.19,65.03138644]
[1644997080983,25.35253896,103.28,103.18,448.49584327]
[1644997081185,122.82253896,103.28,103.18,447.12165125]
[1644997081384,138.11496653,103.28,103.18,447.12165125]
[1644997081787,2.41794346,103.27,103.18,447.12165125]
[1644997081986,3.78037103,103.27,103.18,447.12165125]
[1644997082189,14.5355,103.25,103.18,461.65665125]
[1644997082385,14.99703896,103.25,103.18,461.65665125]
[1644997082989,14.99703896,103.25,103.18,14.535]
[1644997089614,14.99703896,103.25,103.17,14.5367]
[1644997097222,0.46153896,103.25,103.17,14.5367]
[1644997097426,0.46153896,103.25,103.17,78.34249442]
[1644997097623,0.46153896,103.25,103.18,24.2941]
[1644997097827,0.46153896,103.25,103.2,14.5315]
[1644997099126,0.46153896,103.25,103.2,14.7815]
[1644997100530,0.46153896,103.25,103.2,37.2892]
[1644997105235,0.46153896,103.25,103.2,85.6192]
[1644997115746,0.46153896,103.25,103.2,100.84499442]
[1644997116650,0.46153896,103.25,103.2,114.77499442]
[1644997117749,0.46153896,103.25,103.2,116.14918644]
[1644997118149,0.46153896,103.25,103.2,114.77499442]
[1644997119450,0.46153896,103.25,103.2,116.14918644]
[1644997119656,0.46153896,103.25,103.2,114.77499442]
[1644997120350,0.46153896,103.25,103.2,213.61918644]
[1644997120553,0.46153896,103.25,103.2,219.02534912]
[1644997120951,0.46153896,103.25,103.21,1.37419202]
[1644997121153,0.46153896,103.25,103.23,48.33]
[1644997121356,0.46153896,103.25,103.23,73.1854]
[1644997121550,0.46153896,103.25,103.23,73.4354]
[1644997121953,0.46153896,103.25,103.24,2.83409606]
[1644997122153,0.46153896,103.25,103.24,17.60859606]
[1644997123577,0.46153896,103.25,103.24,17.35859606]
[1644997131083,0.46153896,103.25,103.24,65.68859606]
[1644997132285,0.46153896,103.25,103.24,2.83409606]
[1644997140595,0.65964287,103.25,103.23,14.5289]
[1644997140791,0.65964287,103.25,103.23,16.5974058]
[1644997141192,0.46153896,103.25,103.23,16.5974058]
[1644997145197,0.19810391,103.24,103.23,16.5974058]
[1644997145703,0.46153896,103.25,103.23,16.5974058]
[1644997146100,0.46153896,103.25,103.23,16.8474058]
[1644997150503,3.896e-05,103.25,103.23,16.8474058]
[1644997155508,3.896e-05,103.25,103.23,16.5974058]
[1644997155718,3.896e-05,103.25,103.23,2.0685058]
[1644997155910,0.19810391,103.24,103.19,1.37419202]
[1644997156109,0.19810391,103.24,103.17,1.37419202]
[1644997157212,0.19810391,103.24,103.16,74.48369202]
[1644997157414,0.19810391,103.24,103.17,17.31646178]
[1644997157614,0.19810391,103.24,103.17,18.6906538]
[1644997157818,14.73310391,103.24,103.18,14.535]
[1644997166349,14.73310391,103.24,103.17,14.5368]
[1644997173459,14.73310391,103.24,103.16,39.3175]
[1644997174058,112.20310391,103.24,103.16,39.3175]
[1644997177464,14.73310391,103.24,103.16,39.3175]
[1644997179170,112.20310391,103.24,103.16,39.3175]
[1644997180969,14.73310391,103.24,103.16,39.3175]
[1644997181170,14.73310391,103.24,103.16,39.5675]
[1644997181568,14.73310391,103.24,103.16,39.3175]
[1644997182368,112.20310391,103.24,103.16,39.3175]
[1644997184897,113.56553148,103.24,103.16,39.3175]
[1644997187005,16.09553148,103.24,103.16,39.3175]
[1644997187199,16.09553148,103.24,103.16,39.5675]
[1644997187404,14.73310391,103.24,103.16,87.8975]
[1644997190004,14.73310391,103.24,103.16,89.27169202]
[1644997195605,14.535,103.24,103.16,89.27169202]
[1644997199909,14.535,103.24,103.17,1.37419202]
[1644997200112,38.0447,103.25,103.19,14.5323]
[1644997200312,38.0447,103.25,103.19,39.1283]
[1644997201510,14.5323,103.25,103.19,39.1283]
[1644997201709,14.5314,103.26,103.19,39.3783]
[1644997201909,14.5314,103.26,103.19,87.7083]
[1644997207217,14.5314,103.26,103.19,87.4583]
[1644997208520,37.3135,103.26,103.19,87.4583]
[1644997210924,14.5314,103.26,103.19,87.4583]
[1644997211122,24.939,103.27,103.19,87.7083]
[1644997211824,25.96592757,103.3,103.2,103.70319453]
[1644997212024,25.96592757,103.3,103.23,14.5258]
[1644997212223,25.96592757,103.3,103.23,38.2218]
[1644997212425,24.6035,103.3,103.23,38.2218]
[1644997212623,24.6035,103.3,103.23,38.4718]
[1644997212825,39.1293,103.3,103.23,38.4718]
[1644997213223,1.71691045,103.31,103.23,38.4718]
[1644997213427,1.71691045,103.31,103.23,135.9418]
[1644997213623,0.35448288,103.31,103.23,135.9418]
[1644997214024,0.35448288,103.31,103.24,48.33]
[1644997214224,0.35448288,103.31,103.26,14.5222]
[1644997214423,0.35448288,103.31,103.26,39.0181]
[1644997216034,0.35448288,103.31,103.27,48.33]
[1644997216229,0.35448288,103.31,103.28,14.5187]
[1644997216429,0.35448288,103.31,103.29,2.83409606]
[1644997217051,0.35448288,103.31,103.29,3.08409606]
[1644997218051,0.35448288,103.31,103.3,14.5169]
[1644997220054,0.35448288,103.31,103.3,14.7669]
[1644997222159,0.35448288,103.31,103.3,63.0969]
[1644997222559,7.284e-05,103.32,103.31,2.4879544]
[1644997222758,7.284e-05,103.32,103.31,65.3309544]
[1644997222961,7.284e-05,103.32,103.31,65.5809544]
[1644997223158,7.284e-05,103.32,103.31,71.5809544]
[1644997225963,7.284e-05,103.32,103.31,65.5809544]
[1644997226166,7.284e-05,103.32,103.31,17.2509544]
[1644997226373,7.284e-05,103.32,103.31,2.4879544]
[1644997226766,7.284e-05,103.32,103.3,14.5173]
[1644997226767,0.19817675,103.32,103.3,14.5173]
[1644997226965,7.284e-05,103.32,103.3,14.5173]
[1644997227769,1.76942726,103.33,103.3,14.5173]
[1644997228169,1.76942726,103.33,103.31,2.83409606]
[1644997231373,0.19810391,103.32,103.31,2.83409606]
[1644997231579,1.76942726,103.33,103.31,17.59999606]
[1644997232180,1.76942726,103.33,103.32,48.33]
[1644997233980,1.76942726,103.33,103.32,62.8435]
[1644997236206,1.76942726,103.33,103.32,14.5135]
[1644997244822,1.96753117,103.33,103.32,14.5135]
[1644997245624,1.76942726,103.33,103.32,14.5135]
[1644997253240,1.96753117,103.33,103.32,14.5135]
[1644997253438,1.76942726,103.33,103.32,14.5135]
[1644997257766,1.96753117,103.33,103.32,14.5135]
[1644997258568,1.76942726,103.33,103.32,14.5135]
[1644997260969,1.96753117,103.33,103.32,14.5135]
[1644997262270,1.76942726,103.33,103.32,14.5135]
[1644997270577,1.76942726,103.33,103.32,62.8435]
[1644997281802,0.7178171,103.33,103.32,62.8435]
[1644997282003,0.7178171,103.33,103.32,63.0935]
[1644997284509,0.7178171,103.33,103.32,160.5635]
[1644997285613,0.7178171,103.33,103.32,63.0935]
[1644997286909,0.7178171,103.33,103.32,160.5635]
[1644997287509,0.70838984,103.33,103.32,160.5635]
[1644997287933,0.70838984,103.33,103.32,63.0935]
[1644997292839,0.11409538,103.39,103.33,173.17]
[1644997293044,0.11409538,103.39,103.35,97.47]
[1644997293241,1.29210086,103.42,103.37,97.47]
[1644997293242,1.77403648,103.42,103.37,97.47]
[1644997293439,1.77403648,103.42,103.37,111.4]
[1644997293740,1.77403648,103.42,103.38,2.19437663]
[1644997293939,1.77403648,103.42,103.38,13.93]
[1644997294145,1.77403648,103.42,103.39,14.5038]
[1644997294339,1.77403648,103.42,103.4,2.83409606]
[1644997297342,0.19810391,103.41,103.4,2.83409606]
[1644997297541,1.33759887,103.41,103.38,14.5068]
[1644997297742,1.33759887,103.41,103.39,2.31787545]
[1644997297941,1.13949496,103.41,103.39,16.82367545]
[1644997301648,1.13949496,103.41,103.4,2.19437663]
[1644997301846,0.46591,103.41,103.4,16.69627663]